[Event "Titled Tuesday Blitz November 01 Early 2022"]
[White "Rustemov, Alexander"]
[Black "Shipov, Sergei"]
[WhiteFideId "4119002"]
[BlackFideId "4113624"]
[WhiteElo "2932"]
[BlackElo "2771"]
[Result "1-0"]
[Round "08"]
[TimeControl "180+1"]
[Date "2022.11.01"]
[WhiteClock "0:00:10"]
[BlackClock "0:00:10"]

1. d4 {[%clk 0:03:00]}  d5 {[%clk 0:02:59]} 2. c4 {[%clk 0:03:01]}  dxc4 {[%clk 0:03:00]} 3. Nf3 {[%clk 0:02:59]}  a6 {[%clk 0:02:59]} 4. e3 {[%clk 0:02:59]}  e6 {[%clk 0:02:59]} 5. Bxc4 {[%clk 0:02:59]}  c5 {[%clk 0:02:59]} 6. O-O {[%clk 0:02:59]}  Nf6 {[%clk 0:03:00]} 7. e4 {[%clk 0:02:59]}  b5 {[%clk 0:02:54]} 8. Bd3 {[%clk 0:02:58]}  Bb7 {[%clk 0:02:51]} 9. Bg5 {[%clk 0:02:58]}  c4 {[%clk 0:02:37]} 10. Bc2 {[%clk 0:02:57]}  Be7 {[%clk 0:02:38]} 11. Qe2 {[%clk 0:02:45]}  Nbd7 {[%clk 0:02:37]} 12. Re1 {[%clk 0:02:38]}  Rc8 {[%clk 0:02:29]} 13. d5 {[%clk 0:02:28]}  e5 {[%clk 0:01:31]} 14. Nc3 {[%clk 0:02:11]}  O-O {[%clk 0:01:29]} 15. Rad1 {[%clk 0:02:09]}  Qb6 {[%clk 0:01:11]} 16. Nh4 {[%clk 0:01:53]}  Rfe8 {[%clk 0:01:10]} 17. Nf5 {[%clk 0:01:52]}  Bc5 {[%clk 0:01:09]} 18. Qf3 {[%clk 0:01:48]}  g6 {[%clk 0:01:02]} 19. Nh6+ {[%clk 0:01:38]}  Kg7 {[%clk 0:01:02]} 20. Ne2 {[%clk 0:01:23]}  Rf8 {[%clk 0:00:57]} 21. Ng3 {[%clk 0:01:22]}  Ng8 {[%clk 0:00:54]} 22. Nxg8 {[%clk 0:01:17]}  Kxg8 {[%clk 0:00:53]} 23. Bh6 {[%clk 0:01:16]}  Rfe8 {[%clk 0:00:44]} 24. Bg5 {[%clk 0:00:51]}  Bf8 {[%clk 0:00:39]} 25. a3 {[%clk 0:00:50]}  Bg7 {[%clk 0:00:34]} 26. h4 {[%clk 0:00:50]}  h5 {[%clk 0:00:33]} 27. Nf1 {[%clk 0:00:45]}  a5 {[%clk 0:00:29]} 28. Be3 {[%clk 0:00:44]}  Qf6 {[%clk 0:00:27]} 29. Qh3 {[%clk 0:00:43]}  Nc5 {[%clk 0:00:24]} 30. Nd2 {[%clk 0:00:42]}  Rc7 {[%clk 0:00:16]} 31. Nf3 {[%clk 0:00:41]}  Bc8 {[%clk 0:00:17]} 32. Qg3 {[%clk 0:00:38]}  Bg4 {[%clk 0:00:14]} 33. Rd2 {[%clk 0:00:35]}  Nd7 {[%clk 0:00:13]} 34. Ng5 {[%clk 0:00:28]}  c3 {[%clk 0:00:12]} 35. bxc3 {[%clk 0:00:27]}  Rxc3 {[%clk 0:00:13]} 36. Bd3 {[%clk 0:00:25]}  b4 {[%clk 0:00:12]} 37. axb4 {[%clk 0:00:25]}  axb4 {[%clk 0:00:12]} 38. Bb5 {[%clk 0:00:24]}  Qd8 {[%clk 0:00:09]} 39. f3 {[%clk 0:00:21]}  Bf8 {[%clk 0:00:09]} 40. fxg4 {[%clk 0:00:19]}  Bc5 {[%clk 0:00:10]} 41. Qf2 {[%clk 0:00:17]}  Rxe3 {[%clk 0:00:10]} 42. Qxf7+ {[%clk 0:00:10]} 1-0


[Site "https://www.chess.com"]

[Event "Titled Tuesday Blitz November 01 Early 2022"]
[White "Sargsyan, Anna M."]
[Black "Manukian, Artak"]
[WhiteFideId "13308130"]
[BlackFideId "13301373"]
[WhiteElo "2284"]
[BlackElo "2483"]
[Result "1-0"]
[Round "08"]
[TimeControl "180+1"]
[Date "2022.11.02"]
[WhiteClock "0:00:19"]
[BlackClock "0:00:57"]

1. d4 {[%clk 0:02:55]}  d5 {[%clk 0:02:39]} 2. c4 {[%clk 0:02:55]}  dxc4 {[%clk 0:02:40]} 3. Nf3 {[%clk 0:02:55]}  Nf6 {[%clk 0:02:39]} 4. e3 {[%clk 0:02:55]}  e6 {[%clk 0:02:39]} 5. Bxc4 {[%clk 0:02:56]}  a6 {[%clk 0:02:39]} 6. O-O {[%clk 0:02:56]}  c5 {[%clk 0:02:40]} 7. Qe2 {[%clk 0:02:55]}  b5 {[%clk 0:02:40]} 8. Bd3 {[%clk 0:02:56]}  Bb7 {[%clk 0:02:39]} 9. Rd1 {[%clk 0:02:56]}  cxd4 {[%clk 0:02:40]} 10. exd4 {[%clk 0:02:55]}  Be7 {[%clk 0:02:39]} 11. a4 {[%clk 0:02:56]}  b4 {[%clk 0:02:38]} 12. Nbd2 {[%clk 0:02:57]}  O-O {[%clk 0:02:36]} 13. Nc4 {[%clk 0:02:57]}  Nc6 {[%clk 0:02:36]} 14. Bg5 {[%clk 0:02:51]}  Nd5 {[%clk 0:02:35]} 15. Bxe7 {[%clk 0:02:50]}  Qxe7 {[%clk 0:02:36]} 16. Qe4 {[%clk 0:02:45]}  g6 {[%clk 0:02:29]} 17. Rac1 {[%clk 0:02:37]}  Qf6 {[%clk 0:02:18]} 18. Nd6 {[%clk 0:02:35]}  Nd8 {[%clk 0:02:11]} 19. Nxb7 {[%clk 0:02:33]}  Nxb7 {[%clk 0:02:12]} 20. Ne5 {[%clk 0:02:27]}  Nd6 {[%clk 0:02:10]} 21. Qg4 {[%clk 0:02:25]}  Rfc8 {[%clk 0:02:05]} 22. a5 {[%clk 0:02:00]}  Qf4 {[%clk 0:01:47]} 23. Qxf4 {[%clk 0:01:59]}  Nxf4 {[%clk 0:01:47]} 24. Bf1 {[%clk 0:01:53]}  Nb5 {[%clk 0:01:37]} 25. g3 {[%clk 0:01:22]}  Nd5 {[%clk 0:01:33]} 26. Nc6 {[%clk 0:01:05]}  Kf8 {[%clk 0:01:27]} 27. Rc5 {[%clk 0:01:01]}  Nd6 {[%clk 0:01:20]} 28. f3 {[%clk 0:00:58]}  Nb7 {[%clk 0:01:14]} 29. Rcc1 {[%clk 0:00:53]}  b3 {[%clk 0:01:07]} 30. Kf2 {[%clk 0:00:51]}  Ne7 {[%clk 0:01:01]} 31. Nxe7 {[%clk 0:00:46]}  Kxe7 {[%clk 0:01:02]} 32. Rxc8 {[%clk 0:00:38]}  Rxc8 {[%clk 0:01:01]} 33. Bxa6 {[%clk 0:00:30]}  Rc2+ {[%clk 0:01:01]} 34. Ke3 {[%clk 0:00:27]}  Nxa5 {[%clk 0:01:02]} 35. Ra1 {[%clk 0:00:27]}  Nc6 {[%clk 0:00:59]} 36. Bb5 {[%clk 0:00:24]}  Nb4 {[%clk 0:00:59]} 37. Ra7+ {[%clk 0:00:20]}  Kd6 {[%clk 0:00:57]} 38. Rd7# {[%clk 0:00:19]} 1-0


[Site "https://www.chess.com"]

[Event "Titled Tuesday Blitz November 01 Early 2022"]
[White "Schekachikhin, Maksim"]
[Black "Fier, Alexandr"]
[WhiteFideId "24177830"]
[BlackFideId "2107139"]
[WhiteElo "2272"]
[BlackElo "2607"]
[Result "1-0"]
[Round "08"]
[TimeControl "180+1"]
[Date "2022.11.01"]
[WhiteClock "0:00:21"]
[BlackClock "0:01:38"]

1. d4 {[%clk 0:02:59]}  c5 {[%clk 0:02:59]} 2. d5 {[%clk 0:02:59]}  e5 {[%clk 0:02:59]} 3. c4 {[%clk 0:02:58]}  d6 {[%clk 0:03:00]} 4. Nc3 {[%clk 0:02:59]}  g6 {[%clk 0:03:01]} 5. e4 {[%clk 0:02:58]}  Bh6 {[%clk 0:03:01]} 6. Bd3 {[%clk 0:02:57]}  Bxc1 {[%clk 0:03:01]} 7. Qxc1 {[%clk 0:02:57]}  a6 {[%clk 0:03:01]} 8. h4 {[%clk 0:02:57]}  h5 {[%clk 0:03:01]} 9. Nf3 {[%clk 0:02:56]}  Qf6 {[%clk 0:03:01]} 10. Ng5 {[%clk 0:02:56]}  Nd7 {[%clk 0:02:59]} 11. g3 {[%clk 0:02:52]}  Nh6 {[%clk 0:02:59]} 12. Qd2 {[%clk 0:02:52]}  Qe7 {[%clk 0:02:59]} 13. O-O {[%clk 0:02:49]}  f6 {[%clk 0:02:59]} 14. Ne6 {[%clk 0:02:44]}  Nb8 {[%clk 0:02:56]} 15. f4 {[%clk 0:02:43]}  Bxe6 {[%clk 0:02:56]} 16. dxe6 {[%clk 0:02:43]}  Qxe6 {[%clk 0:02:57]} 17. Nd5 {[%clk 0:02:43]}  O-O {[%clk 0:02:46]} 18. Nc7 {[%clk 0:02:34]}  Qc8 {[%clk 0:02:38]} 19. Nxa8 {[%clk 0:02:33]}  Nd7 {[%clk 0:02:39]} 20. fxe5 {[%clk 0:02:31]}  Ng4 {[%clk 0:02:38]} 21. exd6 {[%clk 0:02:26]}  Qxa8 {[%clk 0:02:37]} 22. Be2 {[%clk 0:02:26]}  Nge5 {[%clk 0:02:37]} 23. Qd5+ {[%clk 0:02:24]}  Kg7 {[%clk 0:02:38]} 24. Rad1 {[%clk 0:02:15]}  Qc8 {[%clk 0:02:38]} 25. Kg2 {[%clk 0:02:14]}  Qb8 {[%clk 0:02:33]} 26. b3 {[%clk 0:02:03]}  b5 {[%clk 0:02:34]} 27. Rc1 {[%clk 0:01:45]}  b4 {[%clk 0:02:34]} 28. Rcd1 {[%clk 0:01:43]}  a5 {[%clk 0:02:34]} 29. Qd2 {[%clk 0:01:43]}  Qb7 {[%clk 0:02:33]} 30. Qf4 {[%clk 0:01:42]}  Qb6 {[%clk 0:02:33]} 31. Rd5 {[%clk 0:01:40]}  a4 {[%clk 0:02:31]} 32. g4 {[%clk 0:01:38]}  hxg4 {[%clk 0:02:30]} 33. Bxg4 {[%clk 0:01:39]}  axb3 {[%clk 0:02:23]} 34. axb3 {[%clk 0:01:35]}  Qa7 {[%clk 0:02:23]} 35. Bxd7 {[%clk 0:01:31]}  Nxd7 {[%clk 0:02:23]} 36. h5 {[%clk 0:01:26]}  g5 {[%clk 0:02:22]} 37. Qf5 {[%clk 0:01:26]}  Kh8 {[%clk 0:02:14]} 38. Qg6 {[%clk 0:01:22]}  Qa2+ {[%clk 0:02:08]} 39. Rf2 {[%clk 0:01:20]}  Qb1 {[%clk 0:02:09]} 40. h6 {[%clk 0:00:55]}  Rg8 {[%clk 0:02:08]} 41. Qf5 {[%clk 0:00:55]}  Re8 {[%clk 0:02:06]} 42. Re2 {[%clk 0:00:43]}  Rd8 {[%clk 0:02:04]} 43. Qe6 {[%clk 0:00:38]}  Qxb3 {[%clk 0:01:57]} 44. Qe7 {[%clk 0:00:35]}  Rg8 {[%clk 0:01:57]} 45. Qxd7 {[%clk 0:00:34]}  Qxc4 {[%clk 0:01:58]} 46. Qg4 {[%clk 0:00:33]}  b3 {[%clk 0:01:55]} 47. d7 {[%clk 0:00:33]}  Rd8 {[%clk 0:01:55]} 48. Qf3 {[%clk 0:00:33]}  Kh7 {[%clk 0:01:53]} 49. Red2 {[%clk 0:00:24]}  Qb4 {[%clk 0:01:40]} 50. Qf5+ {[%clk 0:00:24]}  Kxh6 {[%clk 0:01:39]} 51. Qxf6+ {[%clk 0:00:23]}  Kh7 {[%clk 0:01:40]} 52. Qe7+ {[%clk 0:00:23]}  Kh6 {[%clk 0:01:38]} 53. Qxg5+ {[%clk 0:00:22]}  Kh7 {[%clk 0:01:38]} 54. Qe7+ {[%clk 0:00:21]}  Kh6 {[%clk 0:01:38]} 55. Rd6+ {[%clk 0:00:21]}  Kh5 {[%clk 0:01:38]} 56. R2d5+ {[%clk 0:00:21]} 1-0


[Site "https://www.chess.com"]

[Event "Titled Tuesday Blitz November 01 Early 2022"]
[White "Shapiro, Daniel"]
[Black "Tomaszewski, Kacper"]
[WhiteFideId "2001780"]
[BlackFideId "1127373"]
[WhiteElo "2239"]
[BlackElo "2211"]
[Result "1/2-1/2"]
[Round "08"]
[TimeControl "180+1"]
[Date "2022.11.02"]
[WhiteClock "0:00:07"]
[BlackClock "0:00:08"]

1. d4 {[%clk 0:03:00]}  Nf6 {[%clk 0:02:58]} 2. c4 {[%clk 0:03:00]}  e6 {[%clk 0:02:59]} 3. g3 {[%clk 0:03:00]}  d5 {[%clk 0:02:58]} 4. Nf3 {[%clk 0:03:00]}  Nc6 {[%clk 0:02:52]} 5. Qa4 {[%clk 0:02:57]}  Bb4+ {[%clk 0:02:46]} 6. Bd2 {[%clk 0:02:57]}  Qe7 {[%clk 0:02:32]} 7. a3 {[%clk 0:02:52]}  Bxd2+ {[%clk 0:02:28]} 8. Nbxd2 {[%clk 0:02:53]}  Bd7 {[%clk 0:02:27]} 9. Qc2 {[%clk 0:02:53]}  O-O {[%clk 0:02:24]} 10. Bg2 {[%clk 0:02:53]}  e5 {[%clk 0:01:42]} 11. dxe5 {[%clk 0:02:34]}  Nxe5 {[%clk 0:01:41]} 12. cxd5 {[%clk 0:02:31]}  Nxd5 {[%clk 0:01:36]} 13. Qe4 {[%clk 0:02:21]}  Nxf3+ {[%clk 0:01:33]} 14. Bxf3 {[%clk 0:02:21]}  Qxe4 {[%clk 0:01:30]} 15. Bxe4 {[%clk 0:02:17]}  Nf6 {[%clk 0:01:26]} 16. Bg2 {[%clk 0:02:10]}  Rfe8 {[%clk 0:01:24]} 17. e3 {[%clk 0:02:08]}  c6 {[%clk 0:01:13]} 18. O-O {[%clk 0:02:03]}  Be6 {[%clk 0:01:13]} 19. Nf3 {[%clk 0:01:54]}  Bd5 {[%clk 0:01:12]} 20. Nd4 {[%clk 0:01:52]}  Bxg2 {[%clk 0:01:11]} 21. Kxg2 {[%clk 0:01:52]}  Rad8 {[%clk 0:01:11]} 22. Rfd1 {[%clk 0:01:50]}  Rd5 {[%clk 0:01:06]} 23. b4 {[%clk 0:01:44]}  a5 {[%clk 0:01:01]} 24. Rab1 {[%clk 0:01:41]}  axb4 {[%clk 0:00:57]} 25. axb4 {[%clk 0:01:40]}  g6 {[%clk 0:00:52]} 26. Rdc1 {[%clk 0:01:36]}  Ne4 {[%clk 0:00:51]} 27. h4 {[%clk 0:01:26]}  Kg7 {[%clk 0:00:44]} 28. Ra1 {[%clk 0:01:22]}  Re7 {[%clk 0:00:40]} 29. Ra7 {[%clk 0:01:20]}  c5 {[%clk 0:00:33]} 30. bxc5 {[%clk 0:01:14]}  Rxc5 {[%clk 0:00:34]} 31. Rb1 {[%clk 0:01:05]}  Rcc7 {[%clk 0:00:26]} 32. Rb6 {[%clk 0:00:58]}  h5 {[%clk 0:00:22]} 33. Ra3 {[%clk 0:00:50]}  Nd2 {[%clk 0:00:20]} 34. Rd3 {[%clk 0:00:45]}  Nc4 {[%clk 0:00:19]} 35. Rb4 {[%clk 0:00:44]}  Ne5 {[%clk 0:00:18]} 36. Rdb3 {[%clk 0:00:42]}  Nc6 {[%clk 0:00:17]} 37. Nxc6 {[%clk 0:00:39]}  bxc6 {[%clk 0:00:18]} 38. Rc4 {[%clk 0:00:38]}  Re6 {[%clk 0:00:12]} 39. Rbc3 {[%clk 0:00:38]}  Kf6 {[%clk 0:00:12]} 40. e4 {[%clk 0:00:37]}  Ke7 {[%clk 0:00:12]} 41. f4 {[%clk 0:00:36]}  Kd7 {[%clk 0:00:12]} 42. Kf3 {[%clk 0:00:36]}  Rd6 {[%clk 0:00:12]} 43. e5 {[%clk 0:00:36]}  Rd5 {[%clk 0:00:12]} 44. Ke4 {[%clk 0:00:35]}  Rd1 {[%clk 0:00:11]} 45. Re3 {[%clk 0:00:31]}  Rd2 {[%clk 0:00:11]} 46. f5 {[%clk 0:00:30]}  gxf5+ {[%clk 0:00:10]} 47. Kxf5 {[%clk 0:00:30]}  Rf2+ {[%clk 0:00:09]} 48. Kg5 {[%clk 0:00:30]}  Ke6 {[%clk 0:00:09]} 49. Kxh5 {[%clk 0:00:30]}  c5 {[%clk 0:00:09]} 50. Kg5 {[%clk 0:00:23]}  Rf5+ {[%clk 0:00:08]} 51. Kg4 {[%clk 0:00:22]}  Rxe5 {[%clk 0:00:07]} 52. Rec3 {[%clk 0:00:17]}  f5+ {[%clk 0:00:04]} 53. Kf4 {[%clk 0:00:17]}  Kd5 {[%clk 0:00:03]} 54. g4 {[%clk 0:00:13]}  Re4+ {[%clk 0:00:02]} 55. Rxe4 {[%clk 0:00:12]}  fxe4 {[%clk 0:00:03]} 56. Re3 {[%clk 0:00:07]}  Rf7+ {[%clk 0:00:02]} 57. Kg5 {[%clk 0:00:06]}  Kd4 {[%clk 0:00:03]} 58. Re1 {[%clk 0:00:06]}  e3 {[%clk 0:00:03]} 59. Kg6 {[%clk 0:00:06]}  Rf2 {[%clk 0:00:03]} 60. h5 {[%clk 0:00:06]}  e2 {[%clk 0:00:04]} 61. h6 {[%clk 0:00:06]}  Kd3 {[%clk 0:00:04]} 62. h7 {[%clk 0:00:06]}  Rh2 {[%clk 0:00:04]} 63. Kg7 {[%clk 0:00:05]}  Kd2 {[%clk 0:00:04]} 64. Rxe2+ {[%clk 0:00:06]}  Kxe2 {[%clk 0:00:04]} 65. g5 {[%clk 0:00:06]}  c4 {[%clk 0:00:04]} 66. g6 {[%clk 0:00:06]}  c3 {[%clk 0:00:04]} 67. h8=Q {[%clk 0:00:06]}  Rxh8 {[%clk 0:00:04]} 68. Kxh8 {[%clk 0:00:07]}  c2 {[%clk 0:00:05]} 69. g7 {[%clk 0:00:07]}  c1=Q {[%clk 0:00:06]} 70. g8=Q {[%clk 0:00:07]}  Qh6+ {[%clk 0:00:07]} 71. Qh7 {[%clk 0:00:07]}  Qxh7+ {[%clk 0:00:08]} 72. Kxh7 {[%clk 0:00:07]} 1/2-1/2


[Site "https://www.chess.com"]

[Event "Titled Tuesday Blitz November 01 Early 2022"]
[White "Shuvalov, Evgenij"]
[Black "Melikyan, Gnel"]
[WhiteFideId "4187237"]
[BlackFideId "54109990"]
[WhiteElo "2049"]
[BlackElo "2138"]
[Result "0-1"]
[Round "08"]
[TimeControl "180+1"]
[Date "2022.11.02"]
[WhiteClock "0:00:15"]
[BlackClock "0:01:24"]

1. d4 {[%clk 0:02:14]}  Nf6 {[%clk 0:02:58]} 2. c4 {[%clk 0:02:13]}  g6 {[%clk 0:02:59]} 3. Nc3 {[%clk 0:02:13]}  Bg7 {[%clk 0:02:59]} 4. e4 {[%clk 0:02:12]}  d6 {[%clk 0:03:00]} 5. Nf3 {[%clk 0:02:12]}  O-O {[%clk 0:03:00]} 6. Be2 {[%clk 0:02:12]}  e5 {[%clk 0:03:01]} 7. O-O {[%clk 0:02:13]}  Nc6 {[%clk 0:03:01]} 8. d5 {[%clk 0:02:12]}  Ne7 {[%clk 0:03:02]} 9. Ne1 {[%clk 0:02:11]}  Nd7 {[%clk 0:03:02]} 10. Be3 {[%clk 0:02:10]}  f5 {[%clk 0:03:03]} 11. f3 {[%clk 0:02:10]}  f4 {[%clk 0:03:04]} 12. Bf2 {[%clk 0:02:10]}  g5 {[%clk 0:03:05]} 13. Rc1 {[%clk 0:02:04]}  Rf7 {[%clk 0:03:04]} 14. c5 {[%clk 0:02:00]}  Nxc5 {[%clk 0:03:00]} 15. b4 {[%clk 0:01:59]}  Na6 {[%clk 0:02:55]} 16. Nb5 {[%clk 0:01:59]}  Ng6 {[%clk 0:02:53]} 17. Nd3 {[%clk 0:01:42]}  b6 {[%clk 0:02:41]} 18. Be1 {[%clk 0:01:38]}  Bd7 {[%clk 0:02:35]} 19. Nf2 {[%clk 0:01:37]}  h5 {[%clk 0:02:12]} 20. Nxd6 {[%clk 0:01:10]}  cxd6 {[%clk 0:02:13]} 21. Bxa6 {[%clk 0:01:11]}  Bf8 {[%clk 0:02:13]} 22. Bb7 {[%clk 0:01:05]}  Rb8 {[%clk 0:02:12]} 23. Bc6 {[%clk 0:01:05]}  Bc8 {[%clk 0:02:12]} 24. b5 {[%clk 0:01:03]}  Rg7 {[%clk 0:02:09]} 25. a4 {[%clk 0:01:00]}  Nh4 {[%clk 0:02:07]} 26. g3 {[%clk 0:00:53]}  fxg3 {[%clk 0:01:59]} 27. hxg3 {[%clk 0:00:54]}  Ng6 {[%clk 0:02:00]} 28. Kg2 {[%clk 0:00:49]}  Nf4+ {[%clk 0:01:56]} 29. Kh2 {[%clk 0:00:37]}  Qf6 {[%clk 0:01:55]} 30. Bd2 {[%clk 0:00:33]}  g4 {[%clk 0:01:43]} 31. Rh1 {[%clk 0:00:26]}  h4 {[%clk 0:01:40]} 32. Nxg4 {[%clk 0:00:23]}  Bxg4 {[%clk 0:01:38]} 33. fxg4 {[%clk 0:00:22]}  Nd3 {[%clk 0:01:34]} 34. Be3 {[%clk 0:00:18]}  Nxc1 {[%clk 0:01:30]} 35. Qxc1 {[%clk 0:00:19]}  Qf3 {[%clk 0:01:28]} 36. gxh4 {[%clk 0:00:15]}  Qxg4 {[%clk 0:01:24]} 37. Rg1 {[%clk 0:00:15]}  Qxh4# {[%clk 0:01:24]} 0-1


[Site "https://www.chess.com"]

[Event "Titled Tuesday Blitz November 01 Early 2022"]
[White "Silva Lucena, Cristian"]
[Black "Schut, Han"]
[WhiteFideId "2232588"]
[BlackFideId "1005561"]
[WhiteElo "2223"]
[BlackElo "2024"]
[Result "1-0"]
[Round "08"]
[TimeControl "180+1"]
[Date "2022.11.02"]
[WhiteClock "0:01:34"]
[BlackClock "0:00:28"]

1. d4 {[%clk 0:02:44]}  Nf6 {[%clk 0:02:55]} 2. c4 {[%clk 0:02:43]}  g6 {[%clk 0:02:54]} 3. Nc3 {[%clk 0:02:43]}  d5 {[%clk 0:02:55]} 4. Nf3 {[%clk 0:02:42]}  Bg7 {[%clk 0:02:54]} 5. Qb3 {[%clk 0:02:43]}  dxc4 {[%clk 0:02:54]} 6. Qxc4 {[%clk 0:02:44]}  O-O {[%clk 0:02:53]} 7. e4 {[%clk 0:02:43]}  a6 {[%clk 0:02:53]} 8. e5 {[%clk 0:02:43]}  b5 {[%clk 0:02:51]} 9. Qb3 {[%clk 0:02:43]}  Nfd7 {[%clk 0:02:51]} 10. h4 {[%clk 0:02:40]}  e6 {[%clk 0:02:49]} 11. h5 {[%clk 0:02:39]}  c5 {[%clk 0:02:50]} 12. dxc5 {[%clk 0:02:35]}  Bb7 {[%clk 0:02:31]} 13. hxg6 {[%clk 0:02:32]}  hxg6 {[%clk 0:02:30]} 14. Be3 {[%clk 0:02:19]}  Qc7 {[%clk 0:02:15]} 15. O-O-O {[%clk 0:02:14]}  Nxc5 {[%clk 0:02:05]} 16. Qc2 {[%clk 0:02:14]}  b4 {[%clk 0:01:56]} 17. Na4 {[%clk 0:02:12]}  b3 {[%clk 0:01:30]} 18. Qxc5 {[%clk 0:02:04]}  Qxc5+ {[%clk 0:01:29]} 19. Nxc5 {[%clk 0:02:01]}  bxa2 {[%clk 0:01:30]} 20. Kc2 {[%clk 0:01:54]}  Rc8 {[%clk 0:01:16]} 21. Bc4 {[%clk 0:01:54]}  Bxf3 {[%clk 0:01:11]} 22. gxf3 {[%clk 0:01:51]}  Nc6 {[%clk 0:01:11]} 23. f4 {[%clk 0:01:46]}  Bf8 {[%clk 0:00:56]} 24. Nd7 {[%clk 0:01:42]}  Nb4+ {[%clk 0:00:34]} 25. Kb3 {[%clk 0:01:40]}  a5 {[%clk 0:00:31]} 26. Nf6+ {[%clk 0:01:33]}  Kg7 {[%clk 0:00:28]} 27. Rh7# {[%clk 0:01:34]} 1-0


[Site "https://www.chess.com"]

[Event "Titled Tuesday Blitz November 01 Early 2022"]
[White "Smietanska, Wiktoria"]
[Black "Garv Gaur"]
[WhiteFideId "21869359"]
[BlackFideId "45030839"]
[WhiteElo "1854"]
[BlackElo "1960"]
[Result "0-1"]
[Round "08"]
[TimeControl "180+1"]
[Date "2022.11.02"]
[WhiteClock "0:01:23"]
[BlackClock "0:02:46"]

1. c4 {[%clk 0:03:00]}  e6 {[%clk 0:02:58]} 2. Nc3 {[%clk 0:02:51]}  d5 {[%clk 0:02:58]} 3. cxd5 {[%clk 0:02:51]}  exd5 {[%clk 0:02:59]} 4. d4 {[%clk 0:02:52]}  Nf6 {[%clk 0:02:59]} 5. Bg5 {[%clk 0:02:51]}  c6 {[%clk 0:03:00]} 6. e3 {[%clk 0:02:48]}  Be7 {[%clk 0:03:00]} 7. Bd3 {[%clk 0:02:48]}  h6 {[%clk 0:03:00]} 8. Bh4 {[%clk 0:02:48]}  O-O {[%clk 0:03:01]} 9. Qc2 {[%clk 0:02:48]}  Nbd7 {[%clk 0:03:01]} 10. Nge2 {[%clk 0:02:48]}  a5 {[%clk 0:03:01]} 11. O-O {[%clk 0:02:42]}  b5 {[%clk 0:03:00]} 12. Rae1 {[%clk 0:02:39]}  Re8 {[%clk 0:03:00]} 13. f3 {[%clk 0:02:38]}  Ba6 {[%clk 0:03:00]} 14. Bf2 {[%clk 0:02:32]}  Qb6 {[%clk 0:02:57]} 15. e4 {[%clk 0:02:31]}  dxe4 {[%clk 0:02:57]} 16. fxe4 {[%clk 0:02:28]}  Ng4 {[%clk 0:02:57]} 17. h3 {[%clk 0:02:02]}  Nxf2 {[%clk 0:02:57]} 18. Rxf2 {[%clk 0:02:03]}  Bh4 {[%clk 0:02:57]} 19. g3 {[%clk 0:02:02]}  Bg5 {[%clk 0:02:57]} 20. h4 {[%clk 0:01:59]}  Be3 {[%clk 0:02:57]} 21. Nf4 {[%clk 0:01:54]}  Qxd4 {[%clk 0:02:54]} 22. Qe2 {[%clk 0:01:23]}  Bxf2+ {[%clk 0:02:51]} 23. Qxf2 {[%clk 0:01:23]}  Qxf2+ {[%clk 0:02:52]} 24. Kxf2 {[%clk 0:01:24]}  Ne5 {[%clk 0:02:50]} 25. Bc2 {[%clk 0:01:23]}  Rad8 {[%clk 0:02:46]} 0-1


[Site "https://www.chess.com"]

[Event "Titled Tuesday Blitz November 01 Early 2022"]
[White "Sovetbekova, Nurai"]
[Black "Estrada Nieto, Julian"]
[WhiteFideId "13801910"]
[BlackFideId "5101018"]
[WhiteElo "1925"]
[BlackElo "2252"]
[Result "1-0"]
[Round "08"]
[TimeControl "180+1"]
[Date "2022.11.02"]
[WhiteClock "0:00:08"]
[BlackClock "0:00:03"]

1. d4 {[%clk 0:03:00]}  d5 {[%clk 0:02:59]} 2. c4 {[%clk 0:03:00]}  dxc4 {[%clk 0:02:59]} 3. Nf3 {[%clk 0:02:58]}  Nf6 {[%clk 0:02:59]} 4. e3 {[%clk 0:02:58]}  e6 {[%clk 0:02:59]} 5. Bxc4 {[%clk 0:02:58]}  a6 {[%clk 0:03:00]} 6. O-O {[%clk 0:02:54]}  c5 {[%clk 0:03:00]} 7. dxc5 {[%clk 0:02:47]}  Bxc5 {[%clk 0:02:59]} 8. Qxd8+ {[%clk 0:02:46]}  Kxd8 {[%clk 0:02:59]} 9. Rd1+ {[%clk 0:02:46]}  Ke7 {[%clk 0:02:59]} 10. Nc3 {[%clk 0:02:38]}  b5 {[%clk 0:02:51]} 11. Be2 {[%clk 0:02:33]}  Bb7 {[%clk 0:02:51]} 12. a3 {[%clk 0:02:31]}  Nbd7 {[%clk 0:02:50]} 13. b4 {[%clk 0:02:29]}  Bd6 {[%clk 0:02:43]} 14. Bb2 {[%clk 0:02:27]}  Rhd8 {[%clk 0:02:39]} 15. Rd2 {[%clk 0:02:20]}  Ne5 {[%clk 0:02:12]} 16. Nxe5 {[%clk 0:02:08]}  Bxe5 {[%clk 0:02:12]} 17. Rad1 {[%clk 0:01:48]}  Rxd2 {[%clk 0:02:10]} 18. Rxd2 {[%clk 0:01:49]}  Bxc3 {[%clk 0:01:59]} 19. Bxc3 {[%clk 0:01:41]}  Ne4 {[%clk 0:01:59]} 20. Rd3 {[%clk 0:01:23]}  Rc8 {[%clk 0:01:23]} 21. Bd4 {[%clk 0:01:07]}  f6 {[%clk 0:01:13]} 22. f3 {[%clk 0:00:49]}  Ng5 {[%clk 0:00:30]} 23. Bc5+ {[%clk 0:00:47]}  Ke8 {[%clk 0:00:27]} 24. Kf2 {[%clk 0:00:43]}  Nf7 {[%clk 0:00:26]} 25. f4 {[%clk 0:00:28]}  Be4 {[%clk 0:00:22]} 26. Rd4 {[%clk 0:00:25]}  f5 {[%clk 0:00:19]} 27. g4 {[%clk 0:00:19]}  g6 {[%clk 0:00:18]} 28. Bd1 {[%clk 0:00:16]}  Bd5 {[%clk 0:00:15]} 29. gxf5 {[%clk 0:00:14]}  gxf5 {[%clk 0:00:14]} 30. Bf3 {[%clk 0:00:14]}  Bxf3 {[%clk 0:00:14]} 31. Kxf3 {[%clk 0:00:15]}  a5 {[%clk 0:00:13]} 32. e4 {[%clk 0:00:13]}  fxe4+ {[%clk 0:00:12]} 33. Kxe4 {[%clk 0:00:14]}  axb4 {[%clk 0:00:10]} 34. axb4 {[%clk 0:00:15]}  Rc6 {[%clk 0:00:09]} 35. Rd1 {[%clk 0:00:13]}  Ra6 {[%clk 0:00:07]} 36. Rg1 {[%clk 0:00:11]}  Ra2 {[%clk 0:00:05]} 37. Rg8+ {[%clk 0:00:11]}  Kd7 {[%clk 0:00:05]} 38. Rg7 {[%clk 0:00:11]}  Ke8 {[%clk 0:00:06]} 39. Rxh7 {[%clk 0:00:11]}  Re2+ {[%clk 0:00:06]} 40. Kf3 {[%clk 0:00:11]}  Rb2 {[%clk 0:00:06]} 41. Rg7 {[%clk 0:00:10]}  Nh6 {[%clk 0:00:05]} 42. Rg6 {[%clk 0:00:10]}  Nf5 {[%clk 0:00:03]} 43. Rxe6+ {[%clk 0:00:10]}  Kd7 {[%clk 0:00:04]} 44. Rf6 {[%clk 0:00:09]}  Nh4+ {[%clk 0:00:02]} 45. Kg4 {[%clk 0:00:09]}  Ng2 {[%clk 0:00:02]} 46. Rd6+ {[%clk 0:00:09]}  Kc7 {[%clk 0:00:02]} 47. Re6 {[%clk 0:00:07]}  Rc2 {[%clk 0:00:01]} 48. h4 {[%clk 0:00:07]}  Rc3 {[%clk 0:00:01]} 49. h5 {[%clk 0:00:07]}  Ne3+ {[%clk 0:00:01]} 50. Rxe3 {[%clk 0:00:06]}  Rxe3 {[%clk 0:00:01]} 51. Bxe3 {[%clk 0:00:07]}  Kc6 {[%clk 0:00:01]} 52. Kg5 {[%clk 0:00:07]}  Kd5 {[%clk 0:00:02]} 53. Kg6 {[%clk 0:00:08]}  Kc4 {[%clk 0:00:03]} 54. Bc5 {[%clk 0:00:08]} 1-0


[Site "https://www.chess.com"]